fUSD/lending_fUSD_20240420
["ID","MTS","AMOUNT","RATE_DAILY","PERIOD"]
[322991257,1713576651447,-500.0,0.00015342,2]
[322991258,1713576651457,-500.0,0.00015342,2]
[322991259,1713576651466,-1603.38,0.00015342,2]
[322991260,1713576651615,-678.47,0.00015342,2]
[322991261,1713576651634,-500.0,0.00015342,2]
[322991262,1713576651643,-500.0,0.00015342,2]
[322991263,1713576651653,-500.0,0.00015342,2]
[322991264,1713576651662,-452.49836194,0.00015342,2]
[322991265,1713576651671,-500.0,0.00015342,2]
[322991266,1713576651680,-500.0,0.00015342,2]
[322991267,1713576651690,-1383.53,0.00015342,2]
[322991268,1713576651699,-500.0,0.00015342,2]
[322991269,1713576651708,-174.50895948,0.00015342,2]
[322991270,1713576651718,-500.0,0.00015342,2]
[322991271,1713576651728,-500.0,0.00015342,2]
[322991272,1713576651738,-500.0,0.00015342,2]
[322991273,1713576651747,-500.0,0.00015342,2]
[322991274,1713576651758,-775.02,0.00015342,2]
[322991275,1713576651768,-500.0,0.00015342,2]
[322991276,1713576651780,-500.0,0.00015342,2]
[322991277,1713576651789,-652.89,0.00015342,2]
[322991278,1713576651798,-588.74,0.00015342,2]
[322991279,1713576651807,-500.0,0.00015342,2]
[322991280,1713576651816,-500.0,0.00015342,2]
[322991281,1713576651825,-500.0,0.00015342,2]
[322991282,1713576651834,-507.17,0.00015342,2]
[322991283,1713576651843,-500.0,0.00015342,2]
[322991284,1713576651853,-500.0,0.00015342,2]
[322991285,1713576651863,-761.96,0.00015342,2]
[322991286,1713576651874,-1061.55,0.00015342,2]
[322991287,1713576651884,-607.16,0.00015342,2]
[322991288,1713576651894,-500.0,0.00015342,2]
[322991289,1713576651904,-2084.04,0.00015342,2]
[322991290,1713576651914,-720.25,0.00015342,2]
[322991291,1713576651923,-761.94,0.00015342,2]
[322991292,1713576651933,-980.25,0.00015342,2]
[322991293,1713576651944,-500.0,0.00015342,2]
[322991294,1713576651954,-500.0,0.00015342,2]
[322991295,1713576651965,-500.0,0.00015342,2]
[322991296,1713576651976,-500.0,0.00015342,2]
[322991297,1713576651987,-2380.36,0.00015342,2]
[322991298,1713576651997,-500.0,0.00015342,2]
[322991299,1713576652007,-500.0,0.00015342,2]
[322991300,1713576652017,-725.42,0.00015342,2]
[322991301,1713576652031,-500.0,0.00015342,2]
[322991302,1713576652040,-193.68066663,0.00015342,2]
[322991303,1713576652050,-500.0,0.00015342,2]
[322991304,1713576652059,-500.0,0.00015342,2]
[322991305,1713576652068,-606.39,0.00015342,2]
[322991306,1713576652077,-500.0,0.00015342,2]
[322991307,1713576652086,-500.0,0.00015342,2]
[322991308,1713576652096,-1103.11,0.00015342,2]
[322991309,1713576652105,-645.95,0.00015342,2]
[322991310,1713576652114,-549.41,0.00015342,2]
[322991311,1713576652123,-500.0,0.00015342,2]
[322991312,1713576652133,-1164.84,0.00015342,2]
[322991313,1713576652142,-500.0,0.00015342,2]
[322991314,1713576652151,-728.83,0.00015342,2]
[322991315,1713576652161,-500.0,0.00015342,2]
[322991316,1713576652171,-500.0,0.00015342,2]
[322991317,1713576652180,-1876.72,0.00015342,2]
[322991318,1713576652189,-500.0,0.00015342,2]
[322991319,1713576652199,-750.81,0.00015342,2]
[322991320,1713576652209,-1828.67,0.00015342,2]
[322991321,1713576652218,-1312.11,0.00015342,2]
[322991322,1713576652228,-500.0,0.00015342,2]
[322991323,1713576652237,-500.0,0.00015342,2]
[322991324,1713576652247,-500.0,0.00015342,2]
[322991325,1713576652257,-500.0,0.00015342,2]
[322991326,1713576652269,-500.0,0.00015342,2]
[322991327,1713576652281,-500.0,0.00015342,2]
[322991328,1713576652290,-839.21,0.00015342,2]
[322991329,1713576652299,-500.0,0.00015342,2]
[322991330,1713576652309,-1652.56,0.00015342,2]
[322991331,1713576652318,-500.0,0.00015342,2]
[322991332,1713576652327,-500.0,0.00015342,2]
[322991333,1713576652338,-500.0,0.00015342,2]
[322991334,1713576652347,-500.0,0.00015342,2]
[322991335,1713576652356,-500.0,0.00015342,2]
[322991336,1713576652366,-763.84,0.00015342,2]
[322991337,1713576652376,-604.65,0.00015342,2]
[322991338,1713576652385,-1201.46,0.00015342,2]
[322991339,1713576652394,-500.0,0.00015342,2]
[322991340,1713576652404,-1093.75,0.00015342,2]
[322991341,1713576652413,-500.0,0.00015342,2]
[322991342,1713576652424,-500.0,0.00015342,2]
[322991343,1713576652433,-500.0,0.00015342,2]
[322991344,1713576652443,-859.72,0.00015342,2]
[322991345,1713576652453,-500.0,0.00015342,2]
[322991346,1713576652463,-500.0,0.00015342,2]
[322991347,1713576652472,-2359.67,0.00015342,2]
[322991348,1713576652481,-951.45,0.00015342,2]
[322991349,1713576652491,-500.0,0.00015342,2]
[322991350,1713576652500,-872.12,0.00015342,2]
[322991351,1713576652510,-1187.6,0.00015342,2]
[322991352,1713576652519,-500.0,0.00015342,2]
[322991353,1713576652532,-613.42,0.00015342,2]
[322991354,1713576652542,-500.0,0.00015342,2]
[322991355,1713576652553,-500.0,0.00015342,2]
[322991356,1713576652563,-1304.83,0.00015342,2]
[322991357,1713576652573,-500.0,0.00015342,2]
[322991358,1713576652582,-500.0,0.00015342,2]
[322991359,1713576652592,-681.14,0.00015342,2]
[322991360,1713576652603,-1742.57,0.00015342,2]
[322991361,1713576652612,-1618.0,0.00015342,2]
[322991362,1713576652622,-500.0,0.00015342,2]
[322991363,1713576652632,-500.0,0.00015342,2]
[322991364,1713576652641,-500.0,0.00015342,2]
[322991365,1713576652651,-500.0,0.00015342,2]
[322991366,1713576652660,-500.0,0.00015342,2]
[322991367,1713576652669,-500.0,0.00015342,2]
[322991368,1713576652678,-549.16,0.00015342,2]
[322991369,1713576652687,-549.51,0.00015342,2]
[322991370,1713576652696,-500.0,0.00015342,2]
[322991371,1713576652706,-500.0,0.00015342,2]
[322991372,1713576652715,-500.0,0.00015342,2]
[322991373,1713576652724,-571.47,0.00015342,2]
[322991374,1713576652734,-500.0,0.00015342,2]
[322991375,1713576652744,-777.33,0.00015342,2]
[322991376,1713576652754,-3326.46,0.00015342,2]
[322991377,1713576652764,-1092.01,0.00015342,2]
[322991378,1713576652775,-500.0,0.00015342,2]
[322991379,1713576652787,-1103.53,0.00015342,2]
[322991380,1713576652796,-1407.77,0.00015342,2]
[322991381,1713576652807,-500.0,0.00015342,2]
[322991382,1713576652817,-500.0,0.00015342,2]
[322991383,1713576652829,-500.0,0.00015342,2]
[322991384,1713576652838,-654.27,0.00015342,2]
[322991385,1713576652848,-2506.13,0.00015342,2]
[322991386,1713576652858,-500.0,0.00015342,2]
[322991387,1713576652868,-525.55,0.00015342,2]
[322991388,1713576652877,-539.9,0.00015342,2]
[322991389,1713576652889,-500.0,0.00015342,2]
[322991390,1713576652900,-782.83,0.00015342,2]
[322991391,1713576652910,-500.0,0.00015342,2]
[322991392,1713576652922,-500.0,0.00015342,2]
[322991393,1713576652932,-647.89,0.00015342,2]
[322991394,1713576652941,-1505.56,0.00015342,2]
[322991395,1713576652951,-1438.43,0.00015342,2]
[322991396,1713576652960,-500.0,0.00015342,2]
[322991397,1713576652969,-1660.6,0.00015342,2]
[322991398,1713576652978,-500.0,0.00015342,2]
[322991399,1713576652988,-500.0,0.00015342,2]
[322991400,1713576652997,-500.0,0.00015342,2]
[322991401,1713576653006,-1218.1,0.00015342,2]
[322991402,1713576653015,-500.0,0.00015342,2]
[322991403,1713576653025,-3796.93,0.00015342,2]
[322991404,1713576653034,-553.15,0.00015342,2]
[322991405,1713576653043,-500.0,0.00015342,2]
[322991406,1713576653052,-1360.99,0.00015342,2]
[322991407,1713576653061,-673.07,0.00015342,2]
[322991408,1713576653071,-848.14,0.00015342,2]
[322991409,1713576653081,-529.3,0.00015342,2]
[322991410,1713576653092,-2310.88,0.00015342,2]
[322991411,1713576653104,-2601.5,0.00015342,2]
[322991412,1713576653113,-500.0,0.00015342,2]
[322991413,1713576653123,-1950.81,0.00015342,2]
[322991414,1713576653133,-500.0,0.00015342,2]
[322991415,1713576653143,-577.13,0.00015342,2]
[322991416,1713576653154,-500.0,0.00015342,2]
[322991417,1713576653164,-500.0,0.00015342,2]
[322991418,1713576653174,-500.0,0.00015342,2]
[322991419,1713576653184,-2025.58,0.00015342,2]
[322991420,1713576653193,-551.21846448,0.00015342,2]
[322991421,1713576653202,-500.0,0.00015342,2]
[322991422,1713576653212,-500.0,0.00015342,2]
[322991423,1713576653221,-873.78,0.00015342,2]
[322991424,1713576653231,-500.0,0.00015342,2]
[322991425,1713576653241,-500.0,0.00015342,2]
[322991426,1713576653252,-602.39555249,0.00015342,2]
[322991427,1713576653263,-893.93,0.00015342,2]
[322991428,1713576653276,-2241.23,0.00015342,2]
[322991429,1713576653285,-1083.67,0.00015342,2]
[322991430,1713576653295,-500.0,0.00015342,2]
[322991431,1713576653305,-630.39,0.00015342,2]
[322991432,1713576653314,-589.85,0.00015342,2]
[322991433,1713576653324,-2357.72,0.00015342,2]
[322991434,1713576653334,-500.0,0.00015342,2]
[322991435,1713576653344,-989.47,0.00015342,2]
[322991436,1713576653354,-1435.72,0.00015342,2]
[322991437,1713576653364,-866.39,0.00015342,2]
[322991438,1713576653374,-3346.94,0.00015342,2]
[322991439,1713576653383,-625.43948035,0.00015342,2]
[322991440,1713576653394,-500.0,0.00015342,2]
[322991441,1713576653403,-2556.03,0.00015342,2]
[322991442,1713576653412,-610.04,0.00015342,2]
[322991443,1713576653422,-905.2,0.00015342,2]
[322991444,1713576653433,-500.0,0.00015342,2]
[322991445,1713576653443,-500.0,0.00015342,2]
[322991446,1713576653452,-927.11,0.00015342,2]
[322991447,1713576653462,-1355.37,0.00015342,2]
[322991448,1713576653472,-5072.37,0.00015342,2]
[322991449,1713576653482,-2209.06,0.00015342,2]
[322991450,1713576653492,-1993.6,0.00015342,2]
[322991451,1713576653501,-464.35779189,0.00015342,2]
[322991452,1713576653511,-675.51,0.00015342,2]
[322991453,1713576653521,-1814.16,0.00015342,2]
[322991454,1713576653533,-500.0,0.00015342,2]
[322991455,1713576653542,-534.08,0.00015342,2]
[322991456,1713576653552,-500.0,0.00015342,2]
[322991457,1713576653561,-500.0,0.00015342,2]
[322991458,1713576653571,-500.0,0.00015342,2]
[322991459,1713576653581,-1760.95,0.00015342,2]
[322991460,1713576653591,-500.0,0.00015342,2]
[322991461,1713576653601,-2655.3,0.00015342,2]
[322991462,1713576653610,-500.0,0.00015342,2]
[322991463,1713576653621,-500.0,0.00015342,2]
[322991464,1713576653631,-500.0,0.00015342,2]
[322991465,1713576653641,-500.0,0.00015342,2]
[322991466,1713576653651,-500.0,0.00015342,2]
[322991467,1713576653661,-570.38,0.00015342,2]
[322991468,1713576653670,-811.48,0.00015342,2]
[322991469,1713576653680,-1123.86,0.00015342,2]
[322991470,1713576653689,-512.21,0.00015342,2]
[322991471,1713576653699,-500.0,0.00015342,2]
[322991472,1713576653708,-1723.1,0.00015342,2]
[322991473,1713576653718,-1732.36,0.00015342,2]
[322991474,1713576653727,-500.0,0.00015342,2]
[322991475,1713576653737,-2057.04,0.00015342,2]
[322991476,1713576653746,-500.0,0.00015342,2]
[322991477,1713576653756,-500.0,0.00015342,2]
[322991478,1713576653766,-500.0,0.00015342,2]
[322991479,1713576653777,-297.94764191,0.00015342,2]
[322991480,1713576653786,-500.0,0.00015342,2]
[322991481,1713576653796,-1211.09,0.00015342,2]
[322991482,1713576653805,-569.1,0.00015342,2]
[322991483,1713576653815,-2120.52,0.00015342,2]
[322991484,1713576653826,-500.0,0.00015342,2]
[322991485,1713576653835,-2391.03,0.00015342,2]
[322991486,1713576653845,-1465.81,0.00015342,2]
[322991487,1713576653854,-500.0,0.00015342,2]
[322991488,1713576653864,-754.32,0.00015342,2]
[322991489,1713576653873,-4097.0,0.00015342,2]
[322991490,1713576653883,-687.53,0.00015342,2]
[322991491,1713576653893,-1395.41,0.00015342,2]
[322991492,1713576653902,-530.62,0.00015342,2]
[322991493,1713576653912,-31397.28,0.00015342,2]
[322991494,1713576653922,-676.98,0.00015342,2]
[322991495,1713576653931,-500.0,0.00015342,2]
[322991496,1713576653940,-5637.21,0.00015342,2]
[322991497,1713576653950,-121.17391341,0.00015342,2]
[322991498,1713576654377,-378.82608659,0.00015342,2]
[322991499,1713576654387,-1260.09,0.00015342,2]
[322991500,1713576654397,-500.0,0.00015342,2]
[322991501,1713576654407,-813.12,0.00015342,2]
[322991502,1713576654416,-588.81,0.00015342,2]
[322991503,1713576654426,-3363.41,0.00015342,2]
[322991504,1713576654436,-500.0,0.00015342,2]
[322991505,1713576654446,-597.35,0.00015342,2]
[322991506,1713576654456,-500.0,0.00015342,2]
[322991507,1713576654465,-3755.62,0.00015342,2]
[322991508,1713576654475,-544.95,0.00015342,2]
[322991509,1713576654484,-500.0,0.00015342,2]
[322991510,1713576654494,-2259.98,0.00015342,2]
[322991511,1713576654503,-1328.47,0.00015342,2]
[322991512,1713576654513,-627.3,0.00015342,2]
[322991513,1713576654523,-2476.43,0.00015342,2]
[322991514,1713576654533,-500.0,0.00015342,2]
[322991515,1713576654543,-2129.0,0.00015342,2]
[322991516,1713576654553,-828.38,0.00015342,2]
[322991517,1713576654563,-2812.34498271,0.00015342,2]
[322991518,1713576654575,-1436.21501729,0.00015342,2]
[322991519,1713576654586,-500.0,0.00015342,2]
[322991520,1713576654595,-500.0,0.00015342,2]
[322991521,1713576654605,-500.0,0.00015342,2]
[322991522,1713576654614,-199.07867543,0.00015342,2]
[322991523,1713576654675,-300.92132457,0.00015342,2]
[322991524,1713576654684,-500.0,0.00015342,2]
[322991525,1713576654693,-920.00938441,0.00015342,2]
[322991526,1713576656221,-1481.89548696,0.00015068,2]
[322991527,1713576656234,-415.60451304,0.00015068,2]
[322991528,1713576656243,-569.64506264,0.00015068,2]
[322991529,1713576656256,-500.0,0.00015068,2]
[322991530,1713576656265,-500.0,0.00015068,2]
[322991531,1713576656275,-526.22870975,0.00015068,2]
[322991532,1713576656286,-1189.48061559,0.00015342,2]
[322991533,1713576656295,-1772.44,0.00015342,2]
[322991534,1713576656305,-7255.60109898,0.00015342,2]
[322991535,1713576656882,-278.45158743,0.00015068,2]
[322991536,1713576657076,313.52,0.00012868,2]
[322991537,1713576658804,-224.98454402,0.00015068,2]
[322991538,1713576658813,-500.0,0.00015068,2]
[322991539,1713576658823,-522.34651063,0.00015068,2]
[322991540,1713576658832,-594.00452851,0.00015068,2]
[322991541,1713576658842,-501.25628318,0.00015068,2]
[322991542,1713576658851,-503.24515129,0.00015068,2]
[322991543,1713576658860,-503.81599016,0.00015068,2]
[322991544,1713576658870,-500.0,0.00015068,2]
[322991545,1713576658879,-313.52,0.00015132,2]
[322991546,1713576658889,-766.03319276,0.00015342,2]
[322991547,1713576982640,162.53,0.0001611,15]
[322991548,1713577165149,282.16,0.00012563,2]
[322991549,1713577476396,152.37,0.0001611,15]
[322991554,1713577706585,7458.0,0.000224,30]
[322991555,1713577706926,268.05,0.00012522,2]
[322991563,1713577831982,-608.97469375,0.0001437,2]
[322991564,1713577831993,-307.25,0.00014371,2]
[322991565,1713577832002,-30.93560625,0.00014383,2]
[322991566,1713577832020,-1291.36512063,0.00014383,2]
[322991567,1713577832104,-511.961,0.00014383,2]
[322991568,1713577832117,-305.5885,0.00014383,2]
[322991569,1713577838077,-12499.73977312,0.00014383,2]
[322991570,1713577838087,-509.98,0.00014383,2]
[322991571,1713577838096,-14535.34141188,0.0001448,2]
[322991572,1713577838105,-692.75,0.00014563,2]
[322991573,1713577838115,-729.0,0.0001463,2]
[322991574,1713577838124,-268.05,0.00014786,2]
[322991575,1713577838133,-343.3913,0.00014968,2]
[322991576,1713577838143,-290.8907,0.00014968,2]
[322991577,1713577838153,-273.443,0.00014968,2]
[322991578,1713577838162,-7500.0,0.00014968,2]
[322991579,1713577838172,-175.03158217,0.00014968,2]
[322991580,1713577838181,-4060.62687199,0.00014968,2]
[322991581,1713577838191,-150.0,0.00015,2]
[322991582,1713577838200,-1250.0,0.00015,2]
[322991583,1713577838210,-427.79013645,0.00015058,2]
[322991584,1713577838220,-814.70363933,0.00015066,2]
[322991585,1713577838229,-3568.75861475,0.00015067,2]
[322991586,1713577838239,-500.0,0.00015068,2]
[322991587,1713577838248,-500.0,0.00015068,2]
[322991588,1713577838257,-500.0,0.00015068,2]
[322991589,1713577838266,-1015.1,0.00015068,2]
[322991590,1713577838275,-624.02068244,0.00015068,2]
[322991591,1713577838285,-501.99323159,0.00015068,2]
[322991592,1713577838293,-500.0,0.00015068,2]
[322991593,1713577838302,-500.0,0.00015068,2]
[322991594,1713577838311,-875.05,0.00015068,2]
[322991595,1713577838321,-699.54,0.00015068,2]
[322991596,1713577838330,-695.82,0.00015068,2]
[322991597,1713577838339,-500.0,0.00015068,2]
[322991598,1713577838348,-501.90677213,0.00015068,2]
[322991599,1713577838357,-500.0,0.00015068,2]
[322991600,1713577838366,-500.0,0.00015068,2]
[322991601,1713577838375,-500.0,0.00015068,2]
[322991602,1713577838384,-504.37339854,0.00015068,2]
[322991603,1713577838393,-597.02,0.00015068,2]
[322991604,1713577838402,-500.0,0.00015068,2]
[322991605,1713577838411,-500.0,0.00015068,2]
[322991607,1713577838420,-500.0,0.00015068,2]
[322991609,1713577838429,-500.0,0.00015068,2]
[322991611,1713577838438,-500.0,0.00015068,2]
[322991613,1713577838447,-500.0,0.00015068,2]
[322991615,1713577838456,-500.0,0.00015068,2]
[322991617,1713577838465,-510.53,0.00015068,2]
[322991619,1713577838475,-504.29895817,0.00015068,2]
[322991621,1713577838485,-510.00858237,0.00015068,2]
[322991623,1713577838494,-500.0,0.00015068,2]
[322991625,1713577838503,-500.0,0.00015068,2]
[322991627,1713577838512,-634.38,0.00015068,2]
[322991629,1713577838521,-293.86554118,0.00015068,2]
[322991631,1713577838531,-500.0,0.00015068,2]
[322991633,1713577838540,-500.0,0.00015068,2]
[322991635,1713577838549,-500.0,0.00015068,2]
[322991637,1713577838558,-948.71,0.00015068,2]
[322991639,1713577838567,-522.45979821,0.00015068,2]
[322991641,1713577838577,-505.96964234,0.00015068,2]
[322991643,1713577838589,-500.0,0.00015068,2]
[322991646,1713577838601,-500.0,0.00015068,2]
[322991648,1713577838611,-644.26,0.00015068,2]
[322991649,1713577838620,-500.0,0.00015068,2]
[322991651,1713577838629,-500.0,0.00015068,2]
[322991654,1713577838640,-500.0,0.00015068,2]
[322991656,1713577838649,-506.54284514,0.00015068,2]
[322991658,1713577838658,-501.99381822,0.00015068,2]
[322991659,1713577838667,-500.0,0.00015068,2]
[322991661,1713577838677,-500.0,0.00015068,2]
[322991663,1713577838687,-500.0,0.00015068,2]
[322991665,1713577838696,-527.7,0.00015068,2]
[322991667,1713577838705,-500.0,0.00015068,2]
[322991669,1713577838714,-500.0,0.00015068,2]
[322991671,1713577838725,-500.0,0.00015068,2]
[322991674,1713577838734,-505.09839119,0.00015068,2]
[322991676,1713577838744,-500.0,0.00015068,2]
[322991678,1713577838754,-500.0,0.00015068,2]
[322991679,1713577838763,-543.13,0.00015068,2]
[322991680,1713577838772,-627.61,0.00015068,2]
[322991681,1713577838781,-500.0,0.00015068,2]
[322991682,1713577838791,-524.22,0.00015068,2]
[322991683,1713577838801,-500.0,0.00015068,2]
[322991684,1713577838810,-165.15141384,0.00015068,2]
[322991685,1713577838819,-502.97444427,0.00015068,2]
[322991686,1713577838828,-500.0,0.00015068,2]
[322991687,1713577838837,-502.67103074,0.00015068,2]
[322991688,1713577838846,-500.0,0.00015068,2]
[322991689,1713577838855,-731.76,0.00015068,2]
[322991690,1713577838865,-500.0,0.00015068,2]
[322991691,1713577838874,-760.02,0.00015068,2]
[322991692,1713577838883,-500.0,0.00015068,2]
[322991693,1713577838892,-733.86,0.00015068,2]
[322991694,1713577838902,-500.0,0.00015068,2]
[322991695,1713577838912,-500.0,0.00015068,2]
[322991696,1713577838922,-500.0,0.00015068,2]
[322991697,1713577838931,-856.55,0.00015068,2]
[322991698,1713577838941,-500.0,0.00015068,2]
[322991699,1713577838950,-921.35,0.00015068,2]
[322991700,1713577838960,-501.93876497,0.00015068,2]
[322991701,1713577838971,-500.0,0.00015068,2]
[322991702,1713577838980,-500.0,0.00015068,2]
[322991703,1713577838989,-500.0,0.00015068,2]
[322991704,1713577838998,-500.0,0.00015068,2]
[322991705,1713577839007,-500.0,0.00015068,2]
[322991706,1713577839016,-500.0,0.00015068,2]
[322991707,1713577839025,-502.4666454,0.00015068,2]
[322991708,1713577839034,-500.0,0.00015068,2]
[322991709,1713577839042,-155.18752089,0.00015068,2]
[322991710,1713577839051,-665.44,0.00015068,2]
[322991711,1713577839060,-500.0,0.00015068,2]
[322991712,1713577839069,-426.08565037,0.00015068,2]
[322991713,1713577839078,-741.53,0.00015068,2]
[322991714,1713577839087,-529.71,0.00015068,2]
[322991715,1713577839096,-502.56889577,0.00015068,2]
[322991716,1713577839105,-659.22,0.00015068,2]
[322991717,1713577839114,-912.82,0.00015068,2]
[322991718,1713577839124,-502.67670672,0.00015068,2]
[322991719,1713577839133,-500.0,0.00015068,2]
[322991720,1713577839143,-500.0,0.00015068,2]
[322991721,1713577839152,-500.0,0.00015068,2]
[322991722,1713577839163,-767.2,0.00015068,2]
[322991723,1713577839173,-611.76,0.00015068,2]
[322991724,1713577839182,-500.0,0.00015068,2]
[322991725,1713577839191,-502.20206283,0.00015068,2]
[322991726,1713577839201,-523.66,0.00015068,2]
[322991727,1713577839212,-500.0,0.00015068,2]
[322991728,1713577839221,-513.67,0.00015068,2]
[322991729,1713577839230,-500.0,0.00015068,2]
[322991730,1713577839239,-500.0,0.00015068,2]
[322991731,1713577839248,-502.96308851,0.00015068,2]
[322991732,1713577839257,-500.0,0.00015068,2]
[322991733,1713577839266,-500.0,0.00015068,2]
[322991734,1713577839276,-500.0,0.00015068,2]
[322991735,1713577839285,-321.07388195,0.00015068,2]
[322991736,1713577839294,-576.3,0.00015068,2]
[322991737,1713577839303,-500.0,0.00015068,2]
[322991738,1713577839312,-500.0,0.00015068,2]
[322991739,1713577839321,-500.0,0.00015068,2]
[322991740,1713577839330,-531.56,0.00015068,2]
[322991741,1713577839339,-500.0,0.00015068,2]
[322991742,1713577839348,-1328.84,0.00015068,2]
[322991743,1713577839357,-500.0,0.00015068,2]
[322991744,1713577839366,-500.33307883,0.00015068,2]
[322991745,1713577839376,-500.0,0.00015068,2]
[322991746,1713577839385,-500.0,0.00015068,2]
[322991747,1713577839394,-503.87586248,0.00015068,2]
[322991748,1713577839403,-500.59530851,0.00015068,2]
[322991749,1713577839412,-500.0,0.00015068,2]
[322991750,1713577839421,-500.0,0.00015068,2]
[322991751,1713577839430,-588.49,0.00015068,2]
[322991752,1713577839439,-500.0,0.00015068,2]
[322991753,1713577839448,-500.0,0.00015068,2]
[322991754,1713577839457,-500.0,0.00015068,2]
[322991755,1713577839466,-500.0,0.00015068,2]
[322991756,1713577839477,-500.0,0.00015068,2]
[322991757,1713577839486,-500.0,0.00015068,2]
[322991758,1713577839495,-500.0,0.00015068,2]
[322991759,1713577839504,-500.0,0.00015068,2]
[322991760,1713577839513,-500.0,0.00015068,2]
[322991761,1713577839522,-844.77,0.00015068,2]
[322991762,1713577839531,-1040.85,0.00015068,2]
[322991763,1713577839540,-500.0,0.00015068,2]
[322991764,1713577839549,-500.0,0.00015068,2]
[322991765,1713577839558,-500.0,0.00015068,2]
[322991766,1713577839567,-500.0,0.00015068,2]
[322991767,1713577839577,-500.0,0.00015068,2]
[322991768,1713577839589,-500.0,0.00015068,2]
[322991769,1713577839598,-500.0,0.00015068,2]
[322991770,1713577839607,-500.0,0.00015068,2]
[322991771,1713577839617,-500.0,0.00015068,2]
[322991772,1713577839628,-841.14,0.00015068,2]
[322991773,1713577839637,-500.0,0.00015068,2]
[322991774,1713577839647,-500.0,0.00015068,2]
[322991775,1713577839657,-502.32431207,0.00015068,2]
[322991776,1713577839668,-502.22929655,0.00015068,2]
[322991777,1713577839677,-581.39,0.00015068,2]
[322991778,1713577839686,-500.0,0.00015068,2]
[322991779,1713577839695,-500.0,0.00015068,2]
[322991780,1713577839704,-745.21,0.00015068,2]
[322991781,1713577839714,-500.0,0.00015068,2]
[322991782,1713577839725,-500.0,0.00015068,2]
[322991783,1713577839736,-501.87184796,0.00015068,2]
[322991784,1713577839746,-500.0,0.00015068,2]
[322991785,1713577839756,-502.14525333,0.00015068,2]
[322991786,1713577839765,-500.0,0.00015068,2]
[322991787,1713577839774,-500.0,0.00015068,2]
[322991788,1713577839783,-500.0,0.00015068,2]
[322991789,1713577839793,-501.07,0.00015068,2]
[322991790,1713577839801,-500.0,0.00015068,2]
[322991791,1713577839811,-500.0,0.00015068,2]
[322991792,1713577839820,-576.94,0.00015068,2]
[322991793,1713577839829,-513.96,0.00015068,2]
[322991794,1713577839839,-500.0,0.00015068,2]
[322991795,1713577839848,-500.0,0.00015068,2]
[322991796,1713577839858,-1726.33,0.00015068,2]
[322991797,1713577839867,-502.04630996,0.00015068,2]
[322991798,1713577839876,-502.34815109,0.00015068,2]
[322991799,1713577839886,-785.42,0.00015068,2]
[322991800,1713577839896,-500.0,0.00015068,2]
[322991801,1713577839905,-579.58,0.00015068,2]
[322991802,1713577839915,-500.0,0.00015068,2]
[322991803,1713577839925,-500.0,0.00015068,2]
[322991804,1713577839934,-1071.61,0.00015068,2]